bitfinex-derivatives/quotes_BTCF0:USTF0_20210707
["timestamp","ask_amount","ask_price","bid_price","bid_amount"]
[1625702011061,9.70808187,33897.0,33885.0,1.60974936]
[1625702011211,4.33283559,33886.0,33885.0,0.9266]
[1625702011360,4.60664559,33886.0,33885.0,0.9266]
[1625702011511,6.16647993,33886.0,33885.0,0.9266]
[1625702011662,6.16647993,33886.0,33885.0,0.93160996]
[1625702012112,11.38877993,33886.0,33885.0,0.93160996]
[1625702012263,11.38877993,33886.0,33885.0,0.9266]
[1625702012564,12.11050625,33886.0,33885.0,0.9266]
[1625702013313,12.11050625,33886.0,33885.0,0.9296]
[1625702016316,12.11050625,33886.0,33885.0,0.9266]
[1625702017293,12.61050625,33886.0,33885.0,0.9266]
[1625702017742,12.61050625,33886.0,33877.0,0.002]
[1625702018043,4.32105683,33878.0,33877.0,0.002]
[1625702018193,4.58427683,33878.0,33877.0,0.002]
[1625702018345,3.20158703,33878.0,33877.0,0.002]
[1625702018644,3.68273791,33878.0,33877.0,0.002]
[1625702018795,10.06965482,33878.0,33877.0,0.002]
[1625702020453,8.68813791,33878.0,33877.0,0.002]
[1625702021871,10.06866295,33878.0,33877.0,0.002]
[1625702022399,8.68813791,33878.0,33877.0,0.002]
[1625702025249,8.68813791,33878.0,33874.0,0.001]
[1625702025701,0.68954455,33876.0,33874.0,0.001]
[1625702026154,0.68953363,33875.0,33874.0,0.001]
[1625702026454,1.72337246,33875.0,33874.0,0.001]
[1625702026604,2.92950466,33875.0,33874.0,0.001]
[1625702026754,3.1700801,33875.0,33874.0,0.001]
[1625702026905,3.2592801,33875.0,33874.0,0.001]
[1625702029458,2.0531479,33875.0,33874.0,0.001]
[1625702030138,3.25870209,33875.0,33874.0,0.001]
[1625702030736,3.75870209,33875.0,33874.0,0.001]
[1625702032011,3.25870209,33875.0,33874.0,0.001]
[1625702033289,3.75870209,33875.0,33874.0,0.001]
[1625702033437,2.5531479,33875.0,33874.0,0.001]
[1625702033737,2.5531479,33875.0,33864.0,0.003]
[1625702033891,0.6884989,33869.0,33864.0,0.003]
[1625702034041,1.0015189,33869.0,33864.0,0.003]
[1625702034191,0.68851785,33868.0,33864.0,0.003]
[1625702034418,0.68858975,33867.0,33864.0,0.003]
[1625702034570,1.18858975,33867.0,33864.0,0.003]
[1625702034868,1.41037387,33865.0,33864.0,0.003]
[1625702035393,0.72172632,33865.0,33864.0,0.003]
[1625702036144,0.26322,33878.0,33864.0,0.003]
[1625702036293,0.51612371,33870.0,33864.0,0.22309824]
[1625702036443,1.20405935,33873.0,33864.0,0.22309824]
[1625702036593,0.51605525,33877.0,33865.0,0.5151722]
[1625702036743,0.51605525,33877.0,33872.0,1.0]
[1625702036893,0.001,33881.0,33876.0,0.96230176]
[1625702037043,0.001,33881.0,33876.0,1.96230176]
[1625702037194,0.001,33881.0,33880.0,1.0]
[1625702037347,0.51790136,33886.0,33880.0,1.28943]
[1625702037348,0.002,33883.0,33880.0,1.28943]
[1625702037644,0.002,33883.0,33880.0,0.28943]
[1625702037795,0.51797665,33883.0,33880.0,0.28943]
[1625702037946,0.51797665,33883.0,33882.0,1.0]
[1625702038472,0.002,33883.0,33882.0,1.0]
[1625702038695,0.51795821,33883.0,33882.0,1.0]
[1625702038845,0.51795821,33883.0,33882.0,5.59445088]
[1625702038995,0.002,33883.0,33882.0,5.59445088]
[1625702039895,0.002,33883.0,33882.0,5.5994866]
[1625702041172,0.002,33883.0,33882.0,0.4861866]
[1625702041322,0.5180885,33883.0,33882.0,0.00503572]
[1625702041471,0.5180885,33883.0,33876.0,1.48115088]
[1625702041622,2.19524831,33883.0,33876.0,1.48115088]
[1625702041772,5.2004,33877.0,33876.0,0.48115088]
[1625702041922,5.71657823,33877.0,33876.0,0.48115088]
[1625702042524,5.71657823,33877.0,33876.0,0.46335088]
[1625702042823,6.19772911,33877.0,33876.0,5.088e-05]
[1625702042975,6.19772911,33877.0,33870.0,0.24057544]
[1625702042976,8.07408402,33877.0,33870.0,0.24057544]
[1625702043125,0.51624703,33871.0,33870.0,0.24057544]
[1625702043278,0.51624703,33871.0,33861.0,0.001]
[1625702043279,1.29686703,33871.0,33863.0,1.0]
[1625702043577,1.29686703,33871.0,33861.0,0.001]
[1625702043724,0.51633338,33865.0,33864.0,0.00503903]
[1625702043875,0.51633338,33865.0,33862.0,0.00503888]
[1625702044025,4.42513338,33865.0,33862.0,0.00503888]
[1625702044625,0.5164407,33864.0,33862.0,0.00503888]
[1625702044774,0.22697,33864.0,33862.0,0.00503888]
[1625702044924,0.96230176,33863.0,33862.0,0.00503888]
[1625702045376,1.46230176,33863.0,33861.0,0.001]
[1625702045525,0.51623999,33862.0,33861.0,0.001]
[1625702045678,1.01623999,33862.0,33861.0,0.001]
[1625702046278,1.01623999,33862.0,33858.0,0.004]
[1625702046654,0.51591197,33859.0,33858.0,0.004]
[1625702046804,0.51591197,33859.0,33853.0,0.005]
[1625702046954,3.776,33858.0,33853.0,0.005]
[1625702047105,0.5,33857.0,33853.0,0.005]
[1625702047255,0.74937,33857.0,33853.0,0.005]
[1625702047405,0.51593901,33856.0,33853.0,0.005]
[1625702047555,1.01593901,33856.0,33853.0,0.005]
[1625702047857,0.5159407,33855.0,33853.0,0.005]
[1625702048008,0.5,33854.0,33853.0,0.005]
[1625702048308,1.26488837,33857.0,33853.0,0.005]
[1625702048609,0.76488837,33857.0,33853.0,0.005]
[1625702048760,0.51551837,33857.0,33853.0,0.25168]
[1625702048909,0.48115088,33854.0,33853.0,0.25168]
[1625702049060,0.48115088,33854.0,33853.0,1.25168]
[1625702049210,0.48115088,33854.0,33853.0,0.24668]
[1625702050111,0.48115088,33854.0,33852.0,0.005]
[1625702051237,0.48115088,33854.0,33853.0,1.0]
[1625702051537,0.48115088,33854.0,33852.0,1.005]
[1625702052887,0.48115088,33854.0,33852.0,0.005]
[1625702055366,0.48115088,33854.0,33850.0,1.0]
[1625702056720,0.82421088,33854.0,33850.0,1.0]
[1625702057019,0.82421088,33854.0,33851.0,1.0]
[1625702057173,0.82421088,33854.0,33850.0,1.0]
[1625702057621,0.82421088,33854.0,33851.0,1.0]
[1625702057770,0.48115088,33854.0,33851.0,1.0]
[1625702057919,0.48115088,33854.0,33852.0,1.0]
[1625702058219,0.48115088,33854.0,33850.0,1.0]
[1625702058520,0.48115088,33854.0,33852.0,1.0]
[1625702058745,0.48115088,33854.0,33848.0,0.24157544]
[1625702058894,0.24057544,33849.0,33848.0,0.24157544]
[1625702059345,0.24057544,33849.0,33848.0,1.24157544]
[1625702060248,0.48115088,33854.0,33848.0,1.24157544]
[1625702060401,0.48115088,33854.0,33848.0,1.52416544]
[1625702060549,0.48115088,33854.0,33853.0,1.0]
[1625702060850,0.48115088,33854.0,33853.0,6.2546]
[1625702061000,0.48115088,33854.0,33853.0,6.49517544]
[1625702061302,0.48115088,33854.0,33853.0,5.49517544]
[1625702061602,0.48115088,33854.0,33853.0,6.49517544]
[1625702068210,0.48115088,33854.0,33853.0,6.50021995]
[1625702068510,0.48115088,33854.0,33853.0,5.50021995]
[1625702068735,0.48115088,33854.0,33853.0,5.49517544]
[1625702069489,0.48115088,33854.0,33853.0,5.50022025]
[1625702071440,0.48115088,33854.0,33853.0,6.50022025]
[1625702071739,0.48115088,33854.0,33853.0,5.50022025]
[1625702072043,0.48115088,33854.0,33853.0,6.50022025]
[1625702073392,0.48115088,33854.0,33853.0,5.50022025]
[1625702073694,0.48115088,33854.0,33853.0,6.50022025]
[1625702074823,0.48115088,33854.0,33853.0,5.50022025]
[1625702075120,0.48115088,33854.0,33853.0,0.24562025]
[1625702075945,0.48115088,33854.0,33853.0,1.24562025]
[1625702076246,0.48115088,33854.0,33853.0,0.00504481]
[1625702076396,2.03363601,33854.0,33853.0,0.00504481]
[1625702076696,3.24110412,33854.0,33853.0,0.00504481]
[1625702076845,3.24110412,33854.0,33850.0,0.00506172]
[1625702077149,0.75816602,33851.0,33850.0,0.00506172]
[1625702077298,1.00945602,33851.0,33850.0,0.00506172]
[1625702077447,2.04449114,33851.0,33850.0,0.00506172]
[1625702078121,5.60439114,33851.0,33850.0,0.00506172]
[1625702078496,5.60439114,33851.0,33849.0,6.172e-05]
[1625702078872,0.5176033,33850.0,33849.0,6.172e-05]
[1625702079171,0.75817874,33850.0,33849.0,6.172e-05]
[1625702079772,0.84637874,33850.0,33849.0,6.172e-05]
[1625702080971,0.84637874,33850.0,33849.0,0.00511722]
[1625702081122,0.84637874,33850.0,33849.0,1.00006172]
[1625702081422,0.84637874,33850.0,33849.0,0.00511447]
[1625702081946,0.84637874,33850.0,33849.0,6.172e-05]
[1625702082998,1.88154531,33850.0,33849.0,6.172e-05]
[1625702084050,1.88154531,33850.0,33849.0,0.00511467]
[1625702084351,1.88154531,33850.0,33849.0,6.172e-05]
[1625702084802,1.88154531,33850.0,33849.0,1.00006172]
[1625702085104,1.88154531,33850.0,33849.0,0.005118]
[1625702085403,1.88154531,33850.0,33849.0,6.172e-05]
[1625702086003,1.88154531,33850.0,33849.0,0.00511798]
[1625702086153,1.88154531,33850.0,33849.0,6.172e-05]
[1625702088406,1.88154531,33850.0,33849.0,0.00511833]
[1625702088556,1.88154531,33850.0,33849.0,1.00511833]
[1625702088705,1.88154531,33850.0,33849.0,1.00006172]
[1625702088855,1.88154531,33850.0,33849.0,6.172e-05]
[1625702089006,1.88154531,33850.0,33849.0,1.00511833]
[1625702089306,1.88154531,33850.0,33849.0,0.00511833]
[1625702089456,2.68920531,33850.0,33845.0,1.0]
[1625702089606,2.68920531,33850.0,33843.0,0.3440782]
[1625702089756,0.51802093,33846.0,33842.0,0.24057544]
[1625702090056,0.51805209,33843.0,33842.0,0.24057544]
[1625702090208,0.83453209,33843.0,33842.0,0.24057544]
[1625702090356,0.83453209,33843.0,33842.0,0.24562643]
[1625702090656,0.83453209,33843.0,33842.0,1.24562643]
[1625702090957,1.17987415,33843.0,33842.0,0.24562643]
[1625702091256,1.31568297,33843.0,33842.0,0.24562643]
[1625702091707,2.35158373,33843.0,33842.0,0.24562643]
[1625702091857,1.31568297,33843.0,33842.0,0.24562643]
[1625702092081,6.14518297,33843.0,33842.0,0.24562643]
[1625702093959,7.18119168,33843.0,33842.0,0.24562643]
[1625702094108,7.18119168,33843.0,33842.0,0.00505099]
[1625702094785,7.27049168,33843.0,33841.0,0.0050518]
[1625702094935,7.27049168,33843.0,33842.0,0.00505188]
[1625702095084,5.71643088,33843.0,33842.0,0.00505188]
[1625702095238,5.95700632,33843.0,33841.0,0.00505185]
[1625702095387,7.51041205,33843.0,33841.0,0.00505185]
[1625702095535,1.55340729,33842.0,33841.0,0.00505185]
[1625702096287,2.24379493,33842.0,33841.0,0.00505185]
[1625702096586,2.24379493,33842.0,33840.0,0.002]
[1625702097036,2.24205022,33841.0,33840.0,0.002]
[1625702097186,2.48262566,33841.0,33840.0,0.002]
[1625702097336,2.48262566,33841.0,33840.0,0.00505194]
[1625702097638,2.48262566,33841.0,33839.0,0.00505196]
[1625702097938,2.24546532,33840.0,33838.0,0.001]
[1625702098236,2.24353021,33839.0,33838.0,0.001]
[1625702099064,2.33193021,33839.0,33838.0,0.001]
[1625702099218,4.28016837,33839.0,33833.0,0.17472137]
[1625702099365,2.24539162,33834.0,33833.0,0.17472137]
[1625702099516,2.47365162,33834.0,33833.0,0.08392137]
[1625702099668,2.47365162,33834.0,33831.0,0.51898959]
[1625702099821,2.24389398,33832.0,33831.0,0.34599306]
[1625702099971,2.24389398,33832.0,33830.0,0.34039701]
[1625702100271,2.24389398,33832.0,33831.0,0.00505309]
[1625702100422,1.035577,33832.0,33831.0,0.00505309]
[1625702100574,2.24327815,33832.0,33831.0,0.00505309]
[1625702100874,3.44993552,33832.0,33828.0,0.003]
[1625702101024,2.24075912,33829.0,33828.0,0.003]
[1625702101249,2.72191,33829.0,33828.0,0.003]
[1625702101398,2.72191,33829.0,33828.0,0.00805309]
[1625702101699,2.72191,33829.0,33828.0,0.003]
[1625702101850,2.72191,33829.0,33828.0,0.00805305]
[1625702102001,2.72191,33829.0,33828.0,5.305e-05]
[1625702102300,2.72191,33829.0,33825.0,0.51855118]
[1625702102301,1.68777976,33829.0,33825.0,0.51855118]
[1625702102600,1.17062848,33829.0,33826.0,0.00504678]
[1625702102752,0.68960739,33828.0,33826.0,0.00504678]
[1625702103352,0.24057544,33827.0,33826.0,0.00504678]
[1625702103654,0.24057544,33827.0,33826.0,1.00504678]
[1625702103803,0.92986033,33827.0,33826.0,0.00504678]
[1625702103953,1.23844033,33827.0,33826.0,0.00504678]
[1625702104104,2.27179986,33827.0,33826.0,0.00504678]
[1625702104254,1.23844033,33827.0,33825.0,0.00504698]
[1625702104554,1.58138345,33827.0,33826.0,0.00505998]
[1625702104853,2.26951726,33827.0,33826.0,0.00506014]
[1625702105005,2.26951726,33827.0,33823.0,0.24457544]
[1625702105304,0.24057544,33824.0,33823.0,0.24457544]
[1625702105454,0.24057544,33824.0,33823.0,1.24457544]
[1625702105605,0.24057544,33824.0,33823.0,1.24963555]
[1625702106055,0.24057544,33824.0,33823.0,2.97759042]
[1625702106355,0.24057544,33824.0,33823.0,2.97359042]
[1625702106507,0.24057544,33824.0,33823.0,0.9368175]
[1625702106805,0.24057544,33824.0,33823.0,2.9728497]
[1625702107930,0.24057544,33824.0,33823.0,4.18150329]
[1625702108230,0.24057544,33824.0,33823.0,2.9728497]
[1625702108830,0.24057544,33824.0,33823.0,1.9368175]
[1625702109287,0.24057544,33824.0,33823.0,2.97235807]
[1625702109582,0.24057544,33827.0,33823.0,1.97235807]
[1625702109733,0.24057544,33829.0,33825.0,0.69034173]
[1625702110032,0.24057544,33829.0,33826.0,0.69032956]
[1625702110182,0.24057544,33829.0,33828.0,5.9345]
[1625702110482,0.24057544,33829.0,33828.0,6.62969317]
[1625702110857,0.24057544,33829.0,33828.0,5.62969317]
[1625702111011,0.001,33830.0,33828.0,1.73031103]
[1625702111162,0.001,33830.0,33828.0,2.73031103]
[1625702111309,0.24157544,33830.0,33829.0,0.2456333]
[1625702111459,0.24157544,33830.0,33829.0,1.2456333]
[1625702111609,0.24157544,33830.0,33829.0,1.24057544]
[1625702112886,0.24157544,33830.0,33829.0,0.24057544]
[1625702113337,0.92899056,33830.0,33829.0,0.24057544]
[1625702113487,4.93489056,33830.0,33829.0,0.24057544]
[1625702113937,5.96565026,33830.0,33825.0,1.0]
[1625702114087,0.68721359,33828.0,33825.0,1.0]
[1625702114237,0.68721359,33828.0,33823.0,0.24057544]
[1625702114387,0.68686908,33829.0,33823.0,0.24057544]
[1625702114538,0.5,33828.0,33823.0,0.24057544]
[1625702114688,1.18671774,33828.0,33823.0,0.24057544]
[1625702114840,0.68634755,33827.0,33823.0,0.24057544]
[1625702115140,0.68635714,33826.0,33823.0,0.24057544]
[1625702115292,0.24057544,33824.0,33823.0,0.24057544]
[1625702115591,0.24057544,33824.0,33823.0,1.24057544]
[1625702115740,0.24057544,33824.0,33823.0,0.24057544]
[1625702117470,0.24057544,33824.0,33823.0,0.01867544]
[1625702117619,0.24057544,33824.0,33822.0,0.001]
[1625702117620,0.74057544,33824.0,33815.0,0.61450314]
[1625702117770,1.42594383,33824.0,33813.0,0.68954764]
[1625702117920,1.02751237,33823.0,33812.0,0.003]
[1625702118071,0.5,33822.0,33812.0,0.003]
[1625702118220,4.7582,33815.0,33814.0,0.00506022]
[1625702118369,5.04821,33815.0,33813.0,0.002]
[1625702118978,5.04821,33815.0,33808.0,0.003]
[1625702119121,0.5,33814.0,33808.0,0.003]
[1625702119271,0.5,33814.0,33803.0,0.004]
[1625702119272,1.0229405,33811.0,33803.0,0.004]
[1625702119422,0.96230176,33809.0,33796.0,1.03391159]
[1625702119647,0.5,33808.0,33797.0,0.057]
[1625702119797,1.02052554,33802.0,33791.0,1.24057544]
[1625702119948,4.7609,33798.0,33791.0,0.24057544]
[1625702120097,5.05694,33798.0,33791.0,0.24057544]
[1625702120397,5.05694,33798.0,33791.0,1.03557544]
[1625702120547,5.05694,33798.0,33791.0,1.0]
[1625702120848,5.05694,33798.0,33783.0,0.1]
[1625702120849,1.0150903,33797.0,33783.0,0.1]
[1625702120998,1.01330839,33791.0,33783.0,0.1]
[1625702121148,1.26648839,33791.0,33776.0,0.025]
[1625702121299,0.48115088,33777.0,33776.0,0.025]
[1625702121450,0.72894088,33777.0,33776.0,0.025]
[1625702122350,0.48115088,33777.0,33776.0,0.025]
[1625702122499,0.48115088,33777.0,33776.0,1.025]
[1625702122649,0.48115088,33777.0,33776.0,0.025]
[1625702122952,0.48115088,33777.0,33776.0,1.025]
[1625702123101,0.48115088,33777.0,33776.0,0.025]
[1625702123399,0.48115088,33777.0,33776.0,1.025]
[1625702124002,0.48115088,33777.0,33776.0,0.025]
[1625702124299,0.48115088,33777.0,33776.0,1.025]
[1625702125573,0.48115088,33777.0,33776.0,0.025]
[1625702125875,0.48115088,33777.0,33776.0,1.025]
[1625702126324,0.48115088,33777.0,33776.0,0.025]
[1625702126924,0.48115088,33777.0,33776.0,1.025]
[1625702127224,0.48115088,33777.0,33776.0,0.025]
[1625702127373,0.48215088,33777.0,33776.0,0.025]
[1625702127525,0.48215088,33777.0,33776.0,1.025]
[1625702128500,0.002,33782.0,33776.0,0.24554]
[1625702128801,0.002,33782.0,33776.0,1.24554]
[1625702128952,0.002,33782.0,33777.0,0.08544805]
[1625702129101,0.002,33782.0,33781.0,1.0]
[1625702129406,0.002,33782.0,33781.0,1.72172632]
[1625702129552,0.002,33782.0,33781.0,0.72172632]
[1625702129701,0.003,33787.0,33781.0,0.72172632]
[1625702129853,0.003,33787.0,33781.0,1.80709052]
[1625702130002,0.003,33787.0,33784.0,0.08535655]
[1625702130151,0.003,33787.0,33786.0,1.0]
[1625702130303,0.003,33788.0,33786.0,1.08535371]
[1625702130452,0.003,33788.0,33787.0,0.08535453]
[1625702130906,0.003,33788.0,33787.0,1.08535453]
[1625702131056,0.003,33788.0,33787.0,0.08535453]
[1625702131203,0.003,33788.0,33787.0,4.8562]
[1625702131354,0.003,33788.0,33787.0,5.33735088]
[1625702131656,0.003,33788.0,33787.0,4.33735088]
[1625702131955,0.003,33788.0,33787.0,5.33735088]
[1625702133232,0.003,33788.0,33787.0,4.33735088]
[1625702133531,0.003,33788.0,33787.0,5.33735088]
[1625702134738,0.003,33788.0,33787.0,4.33735088]
[1625702134883,0.003,33788.0,33787.0,0.48115088]
[1625702135034,0.003,33788.0,33787.0,1.48115088]
[1625702135483,0.003,33788.0,33787.0,0.48115088]
[1625702136084,0.2669,33788.0,33787.0,0.48115088]
[1625702136234,0.2639,33788.0,33787.0,0.48115088]
[1625702137286,0.2639,33788.0,33787.0,1.48115088]
[1625702137588,0.2639,33788.0,33787.0,0.48115088]
[1625702139761,0.001,33789.0,33787.0,0.48115088]
[1625702140062,0.001,33789.0,33787.0,1.48115088]
[1625702140211,0.001,33789.0,33788.0,1.0]
[1625702140512,0.001,33789.0,33787.0,0.48115088]
[1625702140812,0.001,33789.0,33788.0,1.0]
[1625702141864,0.001,33789.0,33787.0,0.48115088]
[1625702142165,0.001,33789.0,33788.0,1.0]
[1625702143517,0.001,33789.0,33787.0,0.48115088]
[1625702143741,0.001,33789.0,33788.0,1.0]
[1625702144794,0.001,33789.0,33787.0,0.48115088]
[1625702145090,0.001,33789.0,33788.0,1.0]
[1625702145242,0.001,33790.0,33788.0,1.0]
[1625702145542,0.001,33790.0,33789.0,0.24057544]
[1625702147420,0.24157544,33790.0,33789.0,0.24057544]
[1625702147717,0.24157544,33790.0,33789.0,0.24561466]
[1625702149070,0.24157544,33790.0,33789.0,1.24561466]
[1625702149221,0.24157544,33790.0,33789.0,0.24561466]
[1625702149370,0.24157544,33790.0,33789.0,1.24561466]
[1625702150120,0.24157544,33790.0,33789.0,1.53351466]
[1625702150270,0.001,33790.0,33789.0,1.53351466]
[1625702150871,0.001,33790.0,33789.0,0.53351466]
[1625702151171,0.001,33790.0,33789.0,1.53351466]
[1625702151625,0.001,33790.0,33789.0,0.53351466]
[1625702151924,0.001,33790.0,33789.0,1.53351466]
[1625702152374,0.001,33790.0,33789.0,0.53351466]
[1625702152674,0.002,33795.0,33789.0,1.53351466]
[1625702152975,0.002,33795.0,33794.0,1.0]
[1625702153278,0.002,33795.0,33794.0,1.00503742]
[1625702153576,0.002,33795.0,33794.0,1.4861883]
[1625702154029,0.002,33795.0,33794.0,1.57169447]
[1625702154477,0.002,33795.0,33794.0,0.4861883]
[1625702154778,0.002,33795.0,33794.0,1.4861883]
[1625702157256,0.001,33796.0,33794.0,1.4861883]
[1625702157562,0.001,33796.0,33794.0,0.4861883]
[1625702157707,0.001,33796.0,33795.0,0.00503582]
[1625702158759,0.001,33796.0,33795.0,1.00503582]
[1625702159510,0.001,33796.0,33795.0,1.24561126]
[1625702159810,0.001,33796.0,33795.0,0.24561126]
[1625702160489,0.001,33796.0,33795.0,1.24561126]
[1625702161389,0.001,33796.0,33795.0,0.24561126]
[1625702161538,0.48215088,33796.0,33795.0,0.24561126]
[1625702161841,0.24157544,33796.0,33795.0,0.24561126]
[1625702162141,0.24157544,33796.0,33795.0,1.24561126]
[1625702163640,0.001,33796.0,33795.0,1.24561126]
[1625702164993,0.001,33796.0,33795.0,0.24561126]
[1625702165292,0.001,33796.0,33795.0,1.24561126]
[1625702165891,0.001,33796.0,33795.0,0.24561126]
[1625702166192,0.001,33796.0,33795.0,1.33149563]
[1625702166341,0.001,33797.0,33795.0,1.33149563]
[1625702166493,0.001,33797.0,33795.0,1.24561126]
[1625702166641,0.001,33797.0,33796.0,0.08590321]
[1625702166792,0.001,33797.0,33796.0,0.09093779]
[1625702166942,0.001,33797.0,33796.0,1.00503458]
[1625702167618,0.001,33797.0,33796.0,1.24561002]
[1625702168068,0.001,33797.0,33796.0,0.24561002]
[1625702168295,0.001,33797.0,33796.0,1.24561002]
[1625702170321,0.001,33797.0,33796.0,2.27864139]
[1625702173100,0.001,33797.0,33796.0,1.27864139]
[1625702173400,0.001,33797.0,33796.0,3.48574373]
[1625702174076,0.001,33797.0,33796.0,2.48574373]
[1625702174377,0.001,33797.0,33796.0,3.48574373]
[1625702174675,0.001,33797.0,33796.0,2.27864139]
[1625702174979,0.001,33797.0,33796.0,1.24561002]
[1625702175579,0.001,33797.0,33796.0,0.24561002]
[1625702175878,0.001,33797.0,33796.0,1.33194435]
[1625702176027,0.001,33797.0,33796.0,1.24561002]
[1625702177153,0.001,33797.0,33796.0,1.33206465]
[1625702177678,0.001,33797.0,33796.0,1.24561002]
[1625702178129,0.001,33797.0,33796.0,1.93789369]
[1625702178434,0.08586347,33798.0,33796.0,1.24561002]
[1625702178733,0.08586347,33798.0,33797.0,1.08654373]
[1625702178878,0.08586347,33798.0,33797.0,1.09158203]
[1625702179029,0.08586347,33798.0,33797.0,1.0050383]
[1625702179554,0.001,33798.0,33797.0,1.0050383]
[1625702179705,0.08587778,33798.0,33797.0,1.0050383]
[1625702181131,0.001,33798.0,33797.0,1.0050383]
[1625702182032,0.08590248,33798.0,33797.0,1.09157948]
[1625702182332,0.08590248,33798.0,33797.0,1.0050383]
[1625702183008,0.08590248,33798.0,33797.0,0.0050383]
[1625702183308,0.08590248,33798.0,33797.0,1.0050383]
[1625702183309,0.67897803,33798.0,33797.0,1.0050383]
[1625702183759,0.001,33798.0,33797.0,1.09160452]
[1625702183914,0.27598,33798.0,33797.0,1.09160452]
[1625702184508,0.9539134,33798.0,33797.0,1.0050383]
[1625702184660,0.9539134,33798.0,33797.0,0.0050383]
[1625702184960,1.97047317,33798.0,33797.0,0.0050383]
[1625702186987,1.97047317,33798.0,33797.0,1.0050383]
[1625702187136,1.97047317,33798.0,33797.0,1.09168636]
[1625702187285,1.96947317,33798.0,33797.0,1.09168636]
[1625702187436,1.96947317,33798.0,33797.0,1.0050383]
[1625702187886,1.96947317,33798.0,33797.0,1.09168671]
[1625702188562,1.96947317,33798.0,33797.0,0.09168671]
[1625702188864,1.96947317,33798.0,33797.0,0.0050383]
[1625702189310,1.96947317,33798.0,33797.0,1.0050383]
[1625702190062,1.96947317,33798.0,33797.0,1.09169653]
[1625702191113,1.96947317,33798.0,33797.0,0.09169653]
[1625702191263,1.96947317,33798.0,33797.0,1.09169653]
[1625702192390,2.47800891,33798.0,33797.0,1.09169653]
[1625702193293,2.47800891,33798.0,33797.0,0.09169653]
[1625702193592,2.47800891,33798.0,33797.0,1.09169653]
[1625702193817,2.47800891,33798.0,33797.0,1.0050383]
[1625702194492,2.47800891,33798.0,33797.0,0.0050383]
[1625702194644,2.47800891,33798.0,33797.0,0.09171294]
[1625702194945,2.47800891,33798.0,33797.0,0.0050383]
[1625702194946,5.01811271,33798.0,33797.0,0.0050383]
[1625702195699,5.10591271,33798.0,33797.0,0.0050383]
[1625702195844,5.34648815,33798.0,33797.0,0.0050383]
[1625702196146,5.25868815,33798.0,33797.0,0.0050383]
[1625702196446,5.25868815,33798.0,33796.0,0.24057544]
[1625702196597,4.74048848,33797.0,33796.0,0.24057544]
[1625702197047,4.74048848,33797.0,33796.0,0.2456174]
[1625702197422,4.74048848,33797.0,33796.0,1.2456174]
[1625702197722,4.74048848,33797.0,33796.0,0.2456174]
[1625702198474,4.74048848,33797.0,33796.0,1.2456174]
[1625702198624,3.38613574,33797.0,33796.0,1.33233607]
[1625702198774,2.20105594,33797.0,33796.0,1.33233607]
[1625702199225,2.20105594,33797.0,33796.0,0.33233607]
[1625702199376,2.20105594,33797.0,33796.0,0.76609428]
[1625702199527,2.20105594,33797.0,33796.0,2.46005223]
[1625702201026,2.20105594,33797.0,33796.0,1.46005223]
[1625702201180,2.20105594,33797.0,33796.0,2.50104091]
[1625702201326,2.20105594,33797.0,33796.0,3.50104091]
[1625702201851,2.20105594,33797.0,33796.0,2.73618091]
[1625702202155,2.20105594,33797.0,33796.0,3.73618091]
[1625702202528,1.18524907,33797.0,33796.0,3.73618091]
[1625702204558,2.20175027,33797.0,33796.0,3.73618091]
[1625702204785,2.20175027,33797.0,33796.0,2.73618091]
[1625702204936,2.20175027,33797.0,33796.0,2.50104091]
[1625702205084,2.20175027,33797.0,33796.0,2.46005223]
[1625702205311,2.20175027,33797.0,33796.0,3.50150891]
[1625702205609,1.18524907,33797.0,33796.0,3.50150891]
[1625702206059,2.20266623,33797.0,33796.0,3.50150891]
[1625702206961,2.20266623,33797.0,33796.0,2.46005223]
[1625702206962,3.39115549,33797.0,33796.0,2.46005223]
[1625702207413,1.18524907,33797.0,33796.0,4.71721197]
[1625702207562,0.50798807,33797.0,33796.0,6.10624145]
[1625702208689,0.50798807,33797.0,33796.0,6.38024145]
[1625702209889,0.50798807,33797.0,33796.0,6.10624145]
[1625702210041,0.50798807,33797.0,33796.0,4.71721197]
[1625702210042,2.48307367,33797.0,33796.0,4.71721197]
[1625702210340,2.48307367,33797.0,33796.0,3.50181826]
[1625702210790,3.67261948,33797.0,33796.0,3.50181826]
[1625702211318,2.48307367,33797.0,33796.0,4.71790983]
[1625702211618,3.67240504,33797.0,33796.0,3.50181826]
[1625702211768,2.48307367,33797.0,33796.0,3.50181826]
[1625702212819,3.67223107,33797.0,33796.0,3.50181826]
[1625702213269,2.48307367,33797.0,33796.0,4.71796912]
[1625702213569,3.67255329,33797.0,33796.0,3.50181826]
[1625702213722,3.67255329,33797.0,33796.0,3.78253826]
[1625702213869,3.67255329,33797.0,33796.0,4.99867568]
[1625702213870,2.48307367,33797.0,33796.0,4.99867568]
[1625702214169,2.48307367,33797.0,33796.0,3.99867568]
[1625702214320,2.48307367,33797.0,33796.0,4.99867568]
[1625702214847,1.4632903,33797.0,33796.0,6.38860598]
[1625702214995,1.1879003,33797.0,33796.0,6.38860598]
[1625702216571,1.1879003,33797.0,33796.0,4.99867568]
[1625702216572,2.20764734,33797.0,33796.0,4.99867568]
[1625702218001,0.001,33798.0,33796.0,1.5263374]
[1625702218300,1.19024712,33798.0,33797.0,3.25871432]
[1625702218448,1.19024712,33798.0,33797.0,3.26375288]
[1625702218599,2.88929321,33798.0,33797.0,3.26375288]
[1625702218747,2.88929321,33798.0,33797.0,4.48004532]
[1625702218973,2.88929321,33798.0,33797.0,3.26375288]
[1625702219275,2.88929321,33798.0,33797.0,4.48007735]
[1625702219802,2.88929321,33798.0,33797.0,3.26375288]
[1625702220776,2.88929321,33798.0,33797.0,4.48009162]
[1625702220927,1.70004609,33798.0,33797.0,4.48009162]
[1625702226559,2.88963678,33798.0,33797.0,4.48009162]
[1625702227235,2.88863678,33798.0,33797.0,4.48009162]
[1625702229336,2.88863678,33798.0,33797.0,3.26375288]
[1625702229786,2.88863678,33798.0,33797.0,4.4806337]
[1625702230686,1.69904609,33798.0,33797.0,5.87171011]
[1625702230986,1.47114609,33798.0,33797.0,5.87171011]
[1625702231286,0.34049602,33798.0,33797.0,7.44515034]
[1625702231512,0.001,33799.0,33797.0,7.44515034]